[Event "Early-Titled-Tuesday-Blitz-September-05-2023"]
[Site "Chess.com"]
[Date "2023.09.05"]
[Round "10"]
[White "ShahMatKanal"]
[Black "Jumbo"]
[Result "0-1"]
[WhiteElo "2467"]
[BlackElo "2894"]
[TimeControl "180+1"]
[EndTime "9:54:32 PDT"]
[Termination "Jumbo won by resignation"]

1. e4 {[%clk 0:03:00.9]} 1... c5 {[%clk 0:02:54.9]} 2. f4 {[%clk 0:02:59]} 2...
d5 {[%clk 0:02:53.7]} 3. d3 {[%clk 0:02:50.4]} 3... Nc6 {[%clk 0:02:52]} 4. Be2
{[%clk 0:02:48.9]} 4... dxe4 {[%clk 0:02:28.3]} 5. dxe4 {[%clk 0:02:49.8]} 5...
Qxd1+ {[%clk 0:02:25.3]} 6. Bxd1 {[%clk 0:02:50.7]} 6... Nf6 {[%clk 0:02:25.6]}
7. Nc3 {[%clk 0:02:50.4]} 7... Bg4 {[%clk 0:02:18.2]} 8. Be3 {[%clk 0:02:34.4]}
8... O-O-O {[%clk 0:02:06.4]} 9. e5 {[%clk 0:02:26.9]} 9... Bxd1 {[%clk
0:02:01.9]} 10. Rxd1 {[%clk 0:02:26.8]} 10... Nd7 {[%clk 0:02:02.4]} 11. Nf3
{[%clk 0:02:21.6]} 11... h6 {[%clk 0:01:36.6]} 12. O-O {[%clk 0:02:18.4]} 12...
e6 {[%clk 0:01:36.4]} 13. Rf2 {[%clk 0:02:10.6]} 13... Be7 {[%clk 0:01:34.4]}
14. Rfd2 {[%clk 0:02:09.1]} 14... Nb6 {[%clk 0:01:29.1]} 15. b3 {[%clk
0:02:03.1]} 15... Nb4 {[%clk 0:01:23.9]} 16. Rxd8+ {[%clk 0:01:49.5]} 16... Rxd8
{[%clk 0:01:21.6]} 17. Rxd8+ {[%clk 0:01:49.5]} 17... Kxd8 {[%clk 0:01:22.4]}
18. Ne1 {[%clk 0:01:49.1]} 18... N6d5 {[%clk 0:01:01.2]} 19. Nxd5 {[%clk
0:01:47.4]} 19... Nxd5 {[%clk 0:00:55.7]} 20. Kf2 {[%clk 0:01:44.9]} 20... Kd7
{[%clk 0:00:52.7]} 21. Bd2 {[%clk 0:01:38]} 21... c4 {[%clk 0:00:51.3]} 22. Ke2
{[%clk 0:01:20.6]} 22... b5 {[%clk 0:00:42.7]} 23. g3 {[%clk 0:01:16.9]} 23...
Kc6 {[%clk 0:00:42.5]} 24. Nf3 {[%clk 0:01:13.9]} 24... Kc5 {[%clk 0:00:33.2]}
25. h4 {[%clk 0:00:56.2]} 25... h5 {[%clk 0:00:30.1]} 26. Be1 {[%clk 0:00:52.5]}
26... a6 {[%clk 0:00:30]} 27. a3 {[%clk 0:00:48.9]} 27... Kc6 {[%clk 0:00:23]}
28. b4 {[%clk 0:00:47.6]} 28... Nb6 {[%clk 0:00:22.4]} 29. Bf2 {[%clk
0:00:39.5]} 29... Na4 {[%clk 0:00:21.5]} 30. Bd4 {[%clk 0:00:39.2]} 30... Kd5
{[%clk 0:00:22.1]} 31. Ke3 {[%clk 0:00:38.2]} 31... Bd8 {[%clk 0:00:19.9]} 32.
Ng5 {[%clk 0:00:35.4]} 32... Bxg5 {[%clk 0:00:12.3]} 33. fxg5 {[%clk 0:00:36.3]}
33... g6 {[%clk 0:00:09.8]} 34. c3 {[%clk 0:00:19.4]} 34... Nb2 {[%clk
0:00:09.9]} 35. Kf3 {[%clk 0:00:19.3]} 35... Nd3 {[%clk 0:00:10.1]} 36. g4
{[%clk 0:00:18.3]} 36... Nxe5+ {[%clk 0:00:06]} 37. Bxe5 {[%clk 0:00:17.1]}
37... Kxe5 {[%clk 0:00:06.9]} 38. gxh5 {[%clk 0:00:17.3]} 38... gxh5 {[%clk
0:00:07.8]} 39. Ke3 {[%clk 0:00:16.8]} 39... Kf5 {[%clk 0:00:07.9]} 40. Kf3
{[%clk 0:00:17.1]} 40... e5 {[%clk 0:00:07.8]} 41. Ke3 {[%clk 0:00:16.8]} 41...
f6 {[%clk 0:00:06.6]} 42. gxf6 {[%clk 0:00:16.6]} 42... Kxf6 {[%clk 0:00:07.5]}
43. Ke4 {[%clk 0:00:16.8]} 43... Ke6 {[%clk 0:00:08.1]} 44. Ke3 {[%clk
0:00:16.3]} 44... Kf5 {[%clk 0:00:08.7]} 45. Kf3 {[%clk 0:00:16.7]} 45... e4+
{[%clk 0:00:09.4]} 46. Ke3 {[%clk 0:00:17.2]} 46... Ke5 {[%clk 0:00:10.1]} 0-1

[Event "Early-Titled-Tuesday-Blitz-September-05-2023"]
[Site "Chess.com"]
[Date "2023.09.05"]
[Round "10"]
[White "frederiksvane"]
[Black "kingofthenil"]
[Result "0-1"]
[WhiteElo "2921"]
[BlackElo "2772"]
[TimeControl "180+1"]
[EndTime "9:54:34 PDT"]
[Termination "kingofthenil won on time"]

1. e4 {[%clk 0:03:00.9]} 1... Nc6 {[%clk 0:02:57.3]} 2. Nf3 {[%clk 0:03:00.5]}
2... d5 {[%clk 0:02:58.2]} 3. exd5 {[%clk 0:03:01]} 3... Qxd5 {[%clk 0:02:58.5]}
4. Nc3 {[%clk 0:03:01.3]} 4... Qh5 {[%clk 0:02:59.2]} 5. Be2 {[%clk 0:02:54.9]}
5... Bg4 {[%clk 0:02:59.1]} 6. h3 {[%clk 0:02:54.6]} 6... O-O-O {[%clk
0:02:59.5]} 7. O-O {[%clk 0:02:55]} 7... Bxh3 {[%clk 0:03:00]} 8. gxh3 {[%clk
0:02:49]} 8... Qxh3 {[%clk 0:03:00.9]} 9. Nh2 {[%clk 0:02:34.9]} 9... e6 {[%clk
0:03:00.5]} 10. d3 {[%clk 0:02:14.4]} 10... Nf6 {[%clk 0:02:58.7]} 11. Bf4
{[%clk 0:02:11.2]} 11... g5 {[%clk 0:02:58.1]} 12. Bg3 {[%clk 0:02:09.7]} 12...
h5 {[%clk 0:02:58.7]} 13. Nb5 {[%clk 0:01:01.8]} 13... a6 {[%clk 0:02:13.6]} 14.
a4 {[%clk 0:00:30.6]} 14... e5 {[%clk 0:00:50.5]} 15. Bf3 {[%clk 0:00:22.1]}
15... h4 {[%clk 0:00:49.4]} 16. Na7+ {[%clk 0:00:15]} 16... Nxa7 {[%clk
0:00:44.4]} 17. Bxe5 {[%clk 0:00:15.4]} 17... Bd6 {[%clk 0:00:36]} 18. Re1
{[%clk 0:00:15.9]} 18... Qf5 {[%clk 0:00:29.5]} 19. Bg4 {[%clk 0:00:13]} 19...
Nxg4 {[%clk 0:00:28.8]} 20. Qxg4 {[%clk 0:00:13.9]} 20... Qxg4+ {[%clk
0:00:28.3]} 21. Nxg4 {[%clk 0:00:14.8]} 21... Bxe5 {[%clk 0:00:20.8]} 22. Rxe5
{[%clk 0:00:15.7]} 22... Nc6 {[%clk 0:00:18.3]} 23. Rxg5 {[%clk 0:00:08.8]}
23... Nd4 {[%clk 0:00:17.7]} 24. Kh1 {[%clk 0:00:07]} 24... Rhg8 {[%clk
0:00:17]} 25. Rxg8 {[%clk 0:00:05.3]} 25... Rxg8 {[%clk 0:00:17.9]} 26. Nf6
{[%clk 0:00:05.9]} 26... Rg6 {[%clk 0:00:17.8]} 27. Nd5 {[%clk 0:00:05.9]} 27...
Rg5 {[%clk 0:00:17.7]} 28. Ne3 {[%clk 0:00:05.7]} 28... Nf3 {[%clk 0:00:17.4]}
29. Ng2 {[%clk 0:00:03.1]} 29... h3 {[%clk 0:00:17.5]} 30. Nf4 {[%clk
0:00:03.6]} 30... h2 {[%clk 0:00:17.7]} 31. Ne2 {[%clk 0:00:04.3]} 31... f5
{[%clk 0:00:13.6]} 32. c3 {[%clk 0:00:04.1]} 32... f4 {[%clk 0:00:11.8]} 33. d4
{[%clk 0:00:03.5]} 33... Kd7 {[%clk 0:00:12.1]} 34. Rd1 {[%clk 0:00:02.1]} 34...
Ke7 {[%clk 0:00:12.4]} 35. Rc1 {[%clk 0:00:02.3]} 35... Kf6 {[%clk 0:00:12.4]}
36. Rd1 {[%clk 0:00:02.3]} 36... Kf5 {[%clk 0:00:12.6]} 37. Rc1 {[%clk
0:00:02.8]} 37... Ke4 {[%clk 0:00:12.8]} 38. Rd1 {[%clk 0:00:03.3]} 38... c6
{[%clk 0:00:13.2]} 39. b4 {[%clk 0:00:01.1]} 39... b5 {[%clk 0:00:12.9]} 40. a5
{[%clk 0:00:01.6]} 40... Rg4 {[%clk 0:00:12.8]} 41. Rf1 {[%clk 0:00:01.6]} 41...
Kd3 {[%clk 0:00:13]} 42. Nc1+ {[%clk 0:00:02.2]} 42... Kd2 {[%clk 0:00:12.6]}
43. Nd3 {[%clk 0:00:01.1]} 43... Kxd3 {[%clk 0:00:12]} 44. Rd1+ {[%clk
0:00:01.4]} 44... Ke2 {[%clk 0:00:11.9]} 45. d5 {[%clk 0:00:02.1]} 45... Rg1+
{[%clk 0:00:11.7]} 0-1

[Event "Early-Titled-Tuesday-Blitz-September-05-2023"]
[Site "Chess.com"]
[Date "2023.09.05"]
[Round "10"]
[White "assezde36"]
[Black "twofoxniel"]
[Result "1-0"]
[WhiteElo "2801"]
[BlackElo "2665"]
[TimeControl "180+1"]
[EndTime "9:54:45 PDT"]
[Termination "assezde36 won by checkmate"]

1. d4 {[%clk 0:02:57.7]} 1... d5 {[%clk 0:03:00.2]} 2. Nf3 {[%clk 0:02:58.4]}
2... c6 {[%clk 0:03:00.7]} 3. g3 {[%clk 0:02:55.8]} 3... Nf6 {[%clk 0:03:00.4]}
4. Bg2 {[%clk 0:02:56.4]} 4... Bf5 {[%clk 0:03:00.4]} 5. O-O {[%clk 0:02:57.2]}
5... e6 {[%clk 0:02:59.8]} 6. c4 {[%clk 0:02:55.6]} 6... h6 {[%clk 0:03:00.1]}
7. Qb3 {[%clk 0:02:54.5]} 7... Qb6 {[%clk 0:02:59.8]} 8. c5 {[%clk 0:02:55.1]}
8... Qc7 {[%clk 0:02:59.9]} 9. Bf4 {[%clk 0:02:54.9]} 9... Qc8 {[%clk
0:03:00.6]} 10. Nc3 {[%clk 0:02:54.1]} 10... Nbd7 {[%clk 0:03:01]} 11. Rac1
{[%clk 0:02:53]} 11... Be7 {[%clk 0:03:01.2]} 12. Nd2 {[%clk 0:02:47.5]} 12...
O-O {[%clk 0:03:00.4]} 13. Rfe1 {[%clk 0:02:47.3]} 13... g5 {[%clk 0:02:49.3]}
14. Be3 {[%clk 0:02:45.8]} 14... Ng4 {[%clk 0:02:49.2]} 15. Nf1 {[%clk
0:02:45.7]} 15... Nxe3 {[%clk 0:02:48.7]} 16. Nxe3 {[%clk 0:02:46.6]} 16... Bg6
{[%clk 0:02:49.1]} 17. Nf1 {[%clk 0:02:34.3]} 17... Bf6 {[%clk 0:02:47.4]} 18.
Rcd1 {[%clk 0:02:32.6]} 18... e5 {[%clk 0:02:35.4]} 19. e3 {[%clk 0:02:32]}
19... Re8 {[%clk 0:02:33.8]} 20. Bh3 {[%clk 0:02:04.8]} 20... Qc7 {[%clk
0:02:22]} 21. Ne2 {[%clk 0:01:34.9]} 21... Re7 {[%clk 0:02:17.1]} 22. Qc3 {[%clk
0:01:31.1]} 22... Rae8 {[%clk 0:02:14.9]} 23. Rc1 {[%clk 0:01:29.7]} 23... Bh5
{[%clk 0:02:03.3]} 24. g4 {[%clk 0:01:18.2]} 24... Bg6 {[%clk 0:02:03.4]} 25.
Bg2 {[%clk 0:01:17.7]} 25... exd4 {[%clk 0:01:56.1]} 26. Nxd4 {[%clk 0:01:17.7]}
26... Ne5 {[%clk 0:01:52.9]} 27. h3 {[%clk 0:01:05.4]} 27... Nd3 {[%clk
0:01:49.6]} 28. Ng3 {[%clk 0:00:58.2]} 28... Nxe1 {[%clk 0:01:47.6]} 29. Rxe1
{[%clk 0:00:59.1]} 29... Bg7 {[%clk 0:01:42.9]} 30. Qd2 {[%clk 0:00:59.1]} 30...
Re5 {[%clk 0:01:27.2]} 31. Bf3 {[%clk 0:00:55.4]} 31... Qe7 {[%clk 0:01:24.6]}
32. b4 {[%clk 0:00:54.2]} 32... Qf6 {[%clk 0:01:23.3]} 33. Kg2 {[%clk
0:00:53.9]} 33... Kh7 {[%clk 0:01:16.8]} 34. b5 {[%clk 0:00:53.5]} 34... cxb5
{[%clk 0:00:58.7]} 35. Nxb5 {[%clk 0:00:53.6]} 35... Qc6 {[%clk 0:00:58.4]} 36.
Nd6 {[%clk 0:00:38.9]} 36... R8e6 {[%clk 0:00:58.3]} 37. Rc1 {[%clk 0:00:21.2]}
37... Bf8 {[%clk 0:00:58]} 38. Ndf5 {[%clk 0:00:20.8]} 38... Bxc5 {[%clk
0:00:54.9]} 39. Nd4 {[%clk 0:00:20.3]} 39... Bb4 {[%clk 0:00:48]} 40. Qb2 {[%clk
0:00:15.4]} 40... Qa4 {[%clk 0:00:46.9]} 41. Nxe6 {[%clk 0:00:15]} 41... Rxe6
{[%clk 0:00:47.3]} 42. Rc8 {[%clk 0:00:14.5]} 42... f6 {[%clk 0:00:42.1]} 43.
Bxd5 {[%clk 0:00:14.8]} 43... Re7 {[%clk 0:00:41.5]} 44. Qxf6 {[%clk 0:00:14.4]}
44... Rg7 {[%clk 0:00:41.5]} 45. Nf5 {[%clk 0:00:10.2]} 45... Qd7 {[%clk
0:00:25.1]} 46. Rd8 {[%clk 0:00:09.8]} 46... Qc7 {[%clk 0:00:19.7]} 47. Nxg7
{[%clk 0:00:10.2]} 47... Qxg7 {[%clk 0:00:19.8]} 48. Bg8+ {[%clk 0:00:10.3]}
48... Kh8 {[%clk 0:00:19.3]} 49. Bf7+ {[%clk 0:00:10.4]} 49... Kh7 {[%clk
0:00:19.7]} 50. Bxg6+ {[%clk 0:00:10.9]} 50... Qxg6 {[%clk 0:00:20.2]} 51. Rh8#
{[%clk 0:00:11.7]} 1-0

[Event "Early-Titled-Tuesday-Blitz-September-05-2023"]
[Site "Chess.com"]
[Date "2023.09.05"]
[Round "10"]
[White "only_strong_moves"]
[Black "Roman_Ovetchkin"]
[Result "0-1"]
[WhiteElo "2538"]
[BlackElo "2654"]
[TimeControl "180+1"]
[EndTime "9:54:50 PDT"]
[Termination "Roman_Ovetchkin won on time"]

1. d4 {[%clk 0:03:00.9]} 1... Nf6 {[%clk 0:02:59.2]} 2. Nc3 {[%clk 0:03:01]}
2... d5 {[%clk 0:02:58.3]} 3. Bf4 {[%clk 0:03:00.9]} 3... Bf5 {[%clk 0:02:52.4]}
4. e3 {[%clk 0:03:00.6]} 4... e6 {[%clk 0:02:52.1]} 5. Nf3 {[%clk 0:03:00.9]}
5... Bb4 {[%clk 0:02:50.2]} 6. Bd3 {[%clk 0:03:00.8]} 6... Ne4 {[%clk
0:02:45.3]} 7. Bxe4 {[%clk 0:03:00.7]} 7... Bxe4 {[%clk 0:02:44.4]} 8. O-O
{[%clk 0:03:00.6]} 8... Bxc3 {[%clk 0:02:43.8]} 9. bxc3 {[%clk 0:03:01.5]} 9...
Nd7 {[%clk 0:02:43.4]} 10. Nd2 {[%clk 0:02:55.2]} 10... Nb6 {[%clk 0:02:36.6]}
11. Nxe4 {[%clk 0:02:07.6]} 11... dxe4 {[%clk 0:02:36.5]} 12. Qg4 {[%clk
0:02:08.5]} 12... Kf8 {[%clk 0:02:33.3]} 13. f3 {[%clk 0:02:02.4]} 13... exf3
{[%clk 0:02:10.2]} 14. Rxf3 {[%clk 0:02:03.3]} 14... Qe7 {[%clk 0:01:57.5]} 15.
Raf1 {[%clk 0:02:01.8]} 15... f6 {[%clk 0:01:35.8]} 16. Bh6 {[%clk 0:01:48.8]}
16... Nd7 {[%clk 0:01:29.9]} 17. e4 {[%clk 0:01:40.2]} 17... gxh6 {[%clk
0:01:16.5]} 18. Qh5 {[%clk 0:01:36.8]} 18... Rg8 {[%clk 0:01:09.5]} 19. Qxh6+
{[%clk 0:01:34.6]} 19... Qg7 {[%clk 0:01:09.4]} 20. Qh3 {[%clk 0:01:30.6]} 20...
Ke7 {[%clk 0:01:08.3]} 21. d5 {[%clk 0:01:28.1]} 21... exd5 {[%clk 0:01:02.2]}
22. exd5 {[%clk 0:01:29]} 22... Rae8 {[%clk 0:01:01.2]} 23. R3f2 {[%clk
0:00:48.1]} 23... Kd8 {[%clk 0:00:58]} 24. d6 {[%clk 0:00:45.5]} 24... c6 {[%clk
0:00:49.7]} 25. Qd3 {[%clk 0:00:40.3]} 25... Qg6 {[%clk 0:00:45]} 26. Qd4 {[%clk
0:00:38.9]} 26... c5 {[%clk 0:00:44.8]} 27. Qa4 {[%clk 0:00:38.5]} 27... Qe4
{[%clk 0:00:30.6]} 28. Qxa7 {[%clk 0:00:35.2]} 28... Qc6 {[%clk 0:00:24.5]} 29.
Qa8+ {[%clk 0:00:18]} 29... Qc8 {[%clk 0:00:23.8]} 30. Qa3 {[%clk 0:00:14.9]}
30... b6 {[%clk 0:00:20.5]} 31. c4 {[%clk 0:00:13.7]} 31... Qc6 {[%clk
0:00:20.4]} 32. Rd1 {[%clk 0:00:08.6]} 32... Re4 {[%clk 0:00:20.2]} 33. Qd3
{[%clk 0:00:03.4]} 33... Rd4 {[%clk 0:00:18.7]} 34. Qf1 {[%clk 0:00:02.1]} 34...
Qxd6 {[%clk 0:00:16.2]} 35. Re1 {[%clk 0:00:02.7]} 35... Kc7 {[%clk 0:00:15.3]}
36. g3 {[%clk 0:00:01.8]} 36... Rd2 {[%clk 0:00:11.6]} 37. Rxd2 {[%clk
0:00:01.5]} 37... Qxd2 {[%clk 0:00:11.7]} 38. Re2 {[%clk 0:00:02.4]} 38... Qd4+
{[%clk 0:00:11.7]} 39. Rf2 {[%clk 0:00:03.1]} 39... Ne5 {[%clk 0:00:11.4]} 40.
Kg2 {[%clk 0:00:03.4]} 40... Qe4+ {[%clk 0:00:11.7]} 41. Kg1 {[%clk 0:00:03.4]}
41... Rg6 {[%clk 0:00:11.5]} 42. Qd1 {[%clk 0:00:02.2]} 42... Qd4 {[%clk
0:00:10.8]} 43. Qe2 {[%clk 0:00:01.9]} 43... Ng4 {[%clk 0:00:09]} 44. Qe7+
{[%clk 0:00:01.6]} 44... Qd7 {[%clk 0:00:08.3]} 45. Re2 {[%clk 0:00:01.7]} 45...
Ne5 {[%clk 0:00:06.4]} 46. Qf8 {[%clk 0:00:01.1]} 46... Qd1+ {[%clk 0:00:06.4]}
47. Kf2 {[%clk 0:00:01.1]} 47... Ng4+ {[%clk 0:00:06.3]} 48. Kf3 {[%clk
0:00:01.3]} 48... Ne5+ {[%clk 0:00:06.7]} 0-1

[Event "Early-Titled-Tuesday-Blitz-September-05-2023"]
[Site "Chess.com"]
[Date "2023.09.05"]
[Round "10"]
[White "banane_verte"]
[Black "GaiozNigalidze"]
[Result "0-1"]
[WhiteElo "2599"]
[BlackElo "2761"]
[TimeControl "180+1"]
[EndTime "9:54:52 PDT"]
[Termination "GaiozNigalidze won by checkmate"]

1. e4 {[%clk 0:03:00.9]} 1... c5 {[%clk 0:02:58.9]} 2. Nf3 {[%clk 0:02:59.8]}
2... Nc6 {[%clk 0:02:57]} 3. d4 {[%clk 0:02:59.5]} 3... cxd4 {[%clk 0:02:57.9]}
4. Nxd4 {[%clk 0:03:00.4]} 4... Nf6 {[%clk 0:02:58.4]} 5. Nc3 {[%clk 0:03:00.5]}
5... e5 {[%clk 0:02:58.7]} 6. Ndb5 {[%clk 0:03:01.2]} 6... d6 {[%clk 0:02:59]}
7. Bg5 {[%clk 0:03:01.4]} 7... a6 {[%clk 0:02:59.5]} 8. Na3 {[%clk 0:03:00.8]}
8... b5 {[%clk 0:02:59.8]} 9. Nd5 {[%clk 0:03:01.5]} 9... Be7 {[%clk 0:03:00.3]}
10. Bxf6 {[%clk 0:03:02.1]} 10... Bxf6 {[%clk 0:03:01.2]} 11. c3 {[%clk
0:03:02.7]} 11... Bg5 {[%clk 0:03:01.5]} 12. Nc2 {[%clk 0:03:01.9]} 12... Rb8
{[%clk 0:03:02]} 13. a4 {[%clk 0:02:55.5]} 13... bxa4 {[%clk 0:03:02.9]} 14.
Ncb4 {[%clk 0:02:56]} 14... Nxb4 {[%clk 0:03:01.6]} 15. Nxb4 {[%clk 0:02:51.7]}
15... Bd7 {[%clk 0:02:59.1]} 16. Rxa4 {[%clk 0:02:48.9]} 16... Bxa4 {[%clk
0:02:47.4]} 17. Qxa4+ {[%clk 0:02:49.8]} 17... Qd7 {[%clk 0:02:45.2]} 18. Qxd7+
{[%clk 0:02:38.6]} 18... Kxd7 {[%clk 0:02:44]} 19. Bxa6 {[%clk 0:02:39.5]} 19...
Bd8 {[%clk 0:02:20.6]} 20. Kd2 {[%clk 0:02:17.3]} 20... Ba5 {[%clk 0:02:18]} 21.
Nd3 {[%clk 0:02:17.2]} 21... g6 {[%clk 0:02:01.7]} 22. Ra1 {[%clk 0:02:06.4]}
22... Bb6 {[%clk 0:01:59.4]} 23. Bc4 {[%clk 0:01:53.7]} 23... f5 {[%clk
0:01:52.5]} 24. Bd5 {[%clk 0:01:53.8]} 24... fxe4 {[%clk 0:01:49.9]} 25. Bxe4
{[%clk 0:01:54.7]} 25... Ke6 {[%clk 0:01:34.9]} 26. c4 {[%clk 0:01:41.5]} 26...
Bd4 {[%clk 0:01:27.2]} 27. Kc2 {[%clk 0:01:24.5]} 27... Rhc8 {[%clk 0:01:18.3]}
28. Bd5+ {[%clk 0:01:24]} 28... Kf5 {[%clk 0:01:18.7]} 29. f3 {[%clk 0:01:18.6]}
29... Rb5 {[%clk 0:01:05.9]} 30. Be4+ {[%clk 0:00:45]} 30... Kg5 {[%clk
0:01:01]} 31. h4+ {[%clk 0:00:17.2]} 31... Kxh4 {[%clk 0:00:52.7]} 32. Rh1+
{[%clk 0:00:17.2]} 32... Kg3 {[%clk 0:00:52.9]} 33. b3 {[%clk 0:00:12.5]} 33...
Ra5 {[%clk 0:00:44.4]} 34. Rxh7 {[%clk 0:00:07.6]} 34... Ra2+ {[%clk 0:00:41.3]}
35. Kb1 {[%clk 0:00:08]} 35... Rxg2 {[%clk 0:00:31]} 36. Rg7 {[%clk 0:00:08.4]}
36... Kh2 {[%clk 0:00:28]} 37. Rxg6 {[%clk 0:00:07.3]} 37... Rxg6 {[%clk
0:00:19.9]} 38. Bxg6 {[%clk 0:00:08.2]} 38... Kg3 {[%clk 0:00:18.5]} 39. Be4
{[%clk 0:00:07.8]} 39... Rf8 {[%clk 0:00:18.5]} 40. b4 {[%clk 0:00:07.3]} 40...
Rb8 {[%clk 0:00:14.6]} 41. b5 {[%clk 0:00:06.6]} 41... Kh4 {[%clk 0:00:13.2]}
42. Kc2 {[%clk 0:00:06.4]} 42... Kg5 {[%clk 0:00:13.7]} 43. Kb3 {[%clk
0:00:06.7]} 43... Kf6 {[%clk 0:00:14.2]} 44. Kb4 {[%clk 0:00:05.9]} 44... Bb6
{[%clk 0:00:14.2]} 45. f4 {[%clk 0:00:04.4]} 45... exf4 {[%clk 0:00:13.6]} 46.
Bd5 {[%clk 0:00:02.5]} 46... Kf5 {[%clk 0:00:13]} 47. Bc6 {[%clk 0:00:02.3]}
47... Kg4 {[%clk 0:00:12.9]} 48. Bd5 {[%clk 0:00:02.2]} 48... Kg3 {[%clk
0:00:12.7]} 49. Ne1 {[%clk 0:00:02.1]} 49... Re8 {[%clk 0:00:11.6]} 50. Nf3
{[%clk 0:00:01.9]} 50... Re3 {[%clk 0:00:11.3]} 51. Bc6 {[%clk 0:00:01.7]} 51...
Bc5+ {[%clk 0:00:10.6]} 52. Ka5 {[%clk 0:00:01.7]} 52... Ra3# {[%clk 0:00:10.8]}
0-1

[Event "Early-Titled-Tuesday-Blitz-September-05-2023"]
[Site "Chess.com"]
[Date "2023.09.05"]
[Round "10"]
[White "Sargsyan_Shant"]
[Black "Msb2"]
[Result "0-1"]
[WhiteElo "2968"]
[BlackElo "3101"]
[TimeControl "180+1"]
[EndTime "9:54:56 PDT"]
[Termination "Msb2 won by checkmate"]

1. c4 {[%clk 0:03:00.9]} 1... e6 {[%clk 0:03:00.3]} 2. Nf3 {[%clk 0:03:00.3]}
2... d5 {[%clk 0:03:01]} 3. d4 {[%clk 0:03:00.5]} 3... Nf6 {[%clk 0:03:01]} 4.
g3 {[%clk 0:03:01.2]} 4... Nc6 {[%clk 0:03:01.7]} 5. Bg2 {[%clk 0:02:59.6]} 5...
Bd6 {[%clk 0:03:02.4]} 6. O-O {[%clk 0:02:59.7]} 6... O-O {[%clk 0:03:03.1]} 7.
Qc2 {[%clk 0:02:52.3]} 7... dxc4 {[%clk 0:03:02.5]} 8. Nbd2 {[%clk 0:02:45.9]}
8... b5 {[%clk 0:03:02.6]} 9. a4 {[%clk 0:02:42.8]} 9... Nb4 {[%clk 0:03:01.8]}
10. Qb1 {[%clk 0:02:42.4]} 10... c6 {[%clk 0:03:01.4]} 11. axb5 {[%clk
0:02:24.9]} 11... cxb5 {[%clk 0:03:02.3]} 12. Ng5 {[%clk 0:02:25.3]} 12... Rb8
{[%clk 0:02:58.7]} 13. Rxa7 {[%clk 0:02:22.7]} 13... Qb6 {[%clk 0:02:56]} 14.
Ra1 {[%clk 0:01:49.3]} 14... Bb7 {[%clk 0:02:45.1]} 15. Nde4 {[%clk 0:01:41.7]}
15... Nxe4 {[%clk 0:02:41.9]} 16. Bxe4 {[%clk 0:01:41.5]} 16... h6 {[%clk
0:02:39.8]} 17. Bxb7 {[%clk 0:01:29.4]} 17... hxg5 {[%clk 0:02:39.7]} 18. Bg2
{[%clk 0:01:30]} 18... Be7 {[%clk 0:02:36.3]} 19. Rd1 {[%clk 0:01:29.5]} 19...
Rfd8 {[%clk 0:02:35.5]} 20. Be3 {[%clk 0:01:22.9]} 20... Nd5 {[%clk 0:02:33.8]}
21. Bd2 {[%clk 0:01:22.8]} 21... b4 {[%clk 0:02:32]} 22. e4 {[%clk 0:01:22.5]}
22... Nf6 {[%clk 0:02:23.1]} 23. Bxg5 {[%clk 0:01:20.6]} 23... Rxd4 {[%clk
0:02:22.9]} 24. Rxd4 {[%clk 0:01:07.9]} 24... Qxd4 {[%clk 0:02:23.8]} 25. Be3
{[%clk 0:01:08.4]} 25... Qd8 {[%clk 0:02:14.7]} 26. h3 {[%clk 0:01:06.3]} 26...
Rc8 {[%clk 0:02:13.1]} 27. Qc2 {[%clk 0:00:57.3]} 27... Bc5 {[%clk 0:02:09.2]}
28. Rd1 {[%clk 0:00:41.2]} 28... Qf8 {[%clk 0:02:09.1]} 29. e5 {[%clk
0:00:34.6]} 29... Bxe3 {[%clk 0:02:02.2]} 30. exf6 {[%clk 0:00:34.7]} 30... Bh6
{[%clk 0:02:02.9]} 31. Rd4 {[%clk 0:00:31.2]} 31... c3 {[%clk 0:01:55.3]} 32.
fxg7 {[%clk 0:00:30.3]} 32... Bxg7 {[%clk 0:01:47]} 33. Rh4 {[%clk 0:00:30.5]}
33... Qd6 {[%clk 0:01:40]} 34. bxc3 {[%clk 0:00:30.2]} 34... bxc3 {[%clk
0:01:39.2]} 35. Kh2 {[%clk 0:00:20.4]} 35... Qd2 {[%clk 0:01:34.1]} 36. Qh7+
{[%clk 0:00:19]} 36... Kf8 {[%clk 0:01:34.4]} 37. Rg4 {[%clk 0:00:19.8]} 37...
Qh6 {[%clk 0:01:25.2]} 38. Qc2 {[%clk 0:00:19.4]} 38... Rd8 {[%clk 0:01:21.1]}
39. Ra4 {[%clk 0:00:15.9]} 39... Qd2 {[%clk 0:01:19.8]} 40. Ra2 {[%clk
0:00:14.4]} 40... Qe1 {[%clk 0:01:15.1]} 41. Qe2 {[%clk 0:00:12.4]} 41... Qb1
{[%clk 0:01:06.2]} 42. Ra7 {[%clk 0:00:06.2]} 42... Qb6 {[%clk 0:00:53.7]} 43.
Rb7 {[%clk 0:00:06.6]} 43... Qd6 {[%clk 0:00:54.5]} 44. Qf3 {[%clk 0:00:06.7]}
44... Rd7 {[%clk 0:00:55.2]} 45. Rxd7 {[%clk 0:00:05]} 45... Qxd7 {[%clk
0:00:56.1]} 46. Qa8+ {[%clk 0:00:02.7]} 46... Ke7 {[%clk 0:00:56.5]} 47. Qa3+
{[%clk 0:00:03.4]} 47... Qd6 {[%clk 0:00:54.1]} 48. Qxd6+ {[%clk 0:00:03.5]}
48... Kxd6 {[%clk 0:00:55]} 49. Be4 {[%clk 0:00:04.1]} 49... Kc5 {[%clk
0:00:53.6]} 50. Kg2 {[%clk 0:00:04.1]} 50... Kb4 {[%clk 0:00:52.3]} 51. h4
{[%clk 0:00:04.5]} 51... Kb3 {[%clk 0:00:50.4]} 52. g4 {[%clk 0:00:04.4]} 52...
c2 {[%clk 0:00:49.7]} 53. Bxc2+ {[%clk 0:00:04.4]} 53... Kxc2 {[%clk 0:00:50.6]}
54. f4 {[%clk 0:00:04.3]} 54... Kd3 {[%clk 0:00:50.7]} 55. Kf3 {[%clk 0:00:05]}
55... f6 {[%clk 0:00:35.3]} 56. g5 {[%clk 0:00:03.6]} 56... e5 {[%clk 0:00:36]}
57. h5 {[%clk 0:00:03.1]} 57... e4+ {[%clk 0:00:36.6]} 58. Kg2 {[%clk
0:00:02.9]} 58... fxg5 {[%clk 0:00:35.1]} 59. fxg5 {[%clk 0:00:03.8]} 59... e3
{[%clk 0:00:35.6]} 60. h6 {[%clk 0:00:04.2]} 60... Bf8 {[%clk 0:00:31]} 61. Kf3
{[%clk 0:00:03.3]} 61... e2 {[%clk 0:00:31]} 62. h7 {[%clk 0:00:04.2]} 62... Bg7
{[%clk 0:00:31.3]} 63. Kg4 {[%clk 0:00:04.9]} 63... e1=Q {[%clk 0:00:31.5]} 64.
Kf5 {[%clk 0:00:05.5]} 64... Qe4# {[%clk 0:00:31.6]} 0-1